Cogmind - Beta 13 @@@ ROGUE MODE // 2024.03.21 @ 01:37:18 Player: H3-RMN Result: Destroyed by SR-YEA(R) with Subdweller Machine Gun Performance ------------- Evolutions (0) 0 Regions Visited (2) 400 Robots Destroyed (21) 105 Value Destroyed (638) 638 Prototype IDs (0) 0 Alien Tech Used (0) 0 Bonus (0) 0 TOTAL SCORE: 1143 Bonus ------- None Cogmind --------- Core Integrity 0/250 Matter 282/300 Energy 250/250 System Corruption 0% Temperature Cool (0) Movement Treading (160) Location -10/Subcaves Parts ------- > --- POWER (1) -------- Ion Engine > --- PROPULSION (2) --- Light Treads Light Treads > --- UTILITY (2) ------ Heat Sink Small Storage Unit > --- WEAPON (2) ------- Beam Cannon Assault Rifle > --- INVENTORY (8) ---- Subdweller Monowheel Weight Redist. System Utility Shielding Subdweller Laser Subdweller Beam Cannon Grenade Launcher Multitool Makeshift Axe Peak State ------------ > --- POWER ------------ Light Ion Engine > --- PROPULSION ------- Light Treads Wheel > --- UTILITY ---------- Small Storage Unit Improved Terrain Scanner > --- WEAPON ----------- Assault Rifle Light Assault Rifle > --- INVENTORY -------- Light Ion Engine Light Treads Wheel Assault Rifle [Rating: 9] Favorites ----------- Power Ion Engine Engine Ion Engine Propulsion Light Treads Treads Light Treads Wheel Wheel Utility Small Storage Unit Device Heat Sink Storage Small Storage Unit Weapon Light Assault Rifle Energy Cannon Beam Cannon Ballistic Gun Light Assault Rifle Launcher Grenade Launcher Build | -11 -10 -10 ------- Run | Yrd Mat Sub Slots Evolved . | . . . Power . | . . . Propulsion . | . . . Utility . | . . . Weapon . | . . . Parts Attached 20 | 7 8 5 Power 4 | 1 2 1 Engine 4 | 1 2 1 Core . | . . . Reactor . | . . . Propulsion 5 | 2 2 1 Treads 3 | 1 1 1 Leg . | . . . Wheel 2 | 1 1 . Hover . | . . . Flight . | . . . Utility 3 | 2 1 . Device 2 | 1 1 . Storage 1 | 1 . . Processor . | . . . Hackware . | . . . Protection . | . . . Artifact . | . . . Weapon 8 | 2 3 3 Energy Gun . | . . . Energy Cannon 1 | . . 1 Ballistic Gun 6 | 2 3 1 Ballistic Cannon . | . . . Launcher 1 | . . 1 Special Weapon . | . . . Impact Weapon . | . . . Slashing Weapon . | . . . Piercing Weapon . | . . . Special Melee Weapon . | . . . Unidentified Prototypes . | . . . Parts Lost 7 | . 5 2 Power . | . . . Propulsion 3 | . 2 1 Utility 1 | . 1 . Weapon 3 | . 2 1 Highest Loss Streak 2 | . 2 2 To Critical Strikes . | . . . Average Slot Usage (%) 99 | . 99 99 Engine 14 | . 14 14 Treads 17 | . 13 26 Wheel 10 | . 13 1 Device 13 | . 13 14 Storage 14 | . 14 14 Energy Cannon 3 | . . 11 Ballistic Gun 24 | . 27 16 Naked Turns . | . . . Heaviest Build 16 | 12 14 16 Greatest Support 40 | 20 20 40 Greatest Overweight (x) 1 | . 1 1 Average Overweight (x) . | . . . Largest Inventory Capacity 8 | 8 8 8 Average Capacity 7 | 7 8 8 Most Carried 8 | 8 8 8 Average Carried 7 | 3 7 7 Final Capacity 8 | 8 8 8 Final Carried 8 | 8 7 8 Class Distribution -------------------- 100% | Mutant Dominant Class ---------------- Mutant | -10/Materials Mutant | -10/Subcaves Resources | -11 -10 -10 ----------- Run | Yrd Mat Sub Matter Collected 691 | 276 330 85 Remotely . | . . . Salvage Created 821 | 81 637 103 Parts 55 | 6 40 9 Haulers Intercepted 1 | . 1 . Recyclers Shooed 1 | 1 . . Parts Field Recycled . | . . . Retrieved Matter . | . . . Parts Self-Destructed 4 | . . 4 Prevented . | . . . Kills | -11 -10 -10 ------- Run | Yrd Mat Sub Combat Hostiles Destroyed 17 | . 14 3 Guns 14 | . 14 . Cannons 1 | . . 1 AOE 2 | . . 2 Classes Destroyed 6 | 2 3 1 Worker 1 | . 1 . Tunneler 1 | 1 . . Hauler 1 | . 1 . Recycler 1 | 1 . . Grunt 14 | . 14 . Subdweller 3 | . . 3 Best Kill Streak 3 | 1 3 2 Combat Bots Only 3 | . 3 2 Max Kills in Single Turn 1 | 1 1 1 Gunslinging . | . . . Exploded 1 | . . 1 Melee . | . . . Uniques/NPCs Destroyed . | . . . Combat | -11 -10 -10 -------- Run | Yrd Mat Sub Hostile Shots Fired 106 | . 84 22 Missed 26 | . 22 4 Damage Taken 1150 | . 700 450 Core 265 | . 105 160 Absorbed by Shields . | . . . Core Remaining (%) 100 | 100 . . Volleys Fired 96 | 8 73 15 Largest 2 | 2 2 2 Hottest 80 | 40 40 80 Shots Fired 188 | 16 144 28 Gun 177 | 16 144 17 Cannon 9 | . . 9 Launcher 2 | . . 2 Special . | . . . Kinetic 177 | 16 144 17 Thermal 9 | . . 9 Explosive 2 | . . 2 Electromagnetic . | . . . Robot Hit Streak 31 | 5 20 31 Robot Miss Streak 4 | 2 4 1 Penetration Max . | . . . Secondary Targets 2 | . 2 . Max Gunslinging Chain 1 | . 1 . Shots Hit Robots 146 | 10 110 26 Core Hits 46 | 3 36 7 Critical Kills . | . . . Critical Parts Destroyed 1 | . 1 . Critical Strikes 1 | . 1 . Destroy 1 | . 1 . Melee Attacks . | . . . Impact . | . . . Slashing . | . . . Piercing . | . . . Sneak Attacks . | . . . Combat Hostiles . | . . . Follow-up Attacks . | . . . Damage Inflicted 1628 | 106 1092 430 Guns 1376 | 106 1092 178 Cannons 122 | . . 122 Explosions 130 | . . 130 Melee . | . . . Ramming . | . . . Kinetic 1376 | 106 1092 178 Thermal 122 | . . 122 Explosive 130 | . . 130 Electromagnetic . | . . . Impact . | . . . Slashing . | . . . Piercing . | . . . Highest Corruption . | . . . Average Corruption . | . . . Corruption Purged . | . . . Corruption Blocked . | . . . Overload Shots . | . . . Overflow Damage . | . . . Projectiles . | . . . Explosions . | . . . Melee . | . . . Knockbacks . | . . . Impact . | . . . Kinetic . | . . . Secondary . | . . . Self-Inflicted Damage 17 | . . 17 Shots 1 | . . 1 Rammed . | . . . Targets Rammed . | . . . Kicked . | . . . Crushed . | . . . Highest Temperature 18 | . 18 . Average Temperature 7 | . 7 . Received Heat Transfer 483 | . 399 84 Siege Activations . | . . . Robots Corrupted . | . . . Combat Hostiles . | . . . Parts Fried . | . . . Impact Corruptions . | . . . Robots Melted . | . . . Combat Hostiles . | . . . Parts Melted . | . . . Heat Transferred 259 | . . 259 Parts Sabotaged . | . . . Parts Stolen . | . . . Parts Stripped . | . . . Power Chain Reactions . | . . . Alert | -11 -10 -10 ------- Run | Yrd Mat Sub Peak Influence 330 | 10 330 . Initial 6 | . 6 . Average 123 | 4 141 . Maximum Alert Level 1 | . 1 . Low Security (%) 70 | 100 66 . Level 1 29 | . 33 . Level 2 . | . . . Level 3 . | . . . Level 4 . | . . . Level 5 . | . . . High Security . | . . . Max Security . | . . . Squads Dispatched 6 | . 6 . Investigation 3 | . 3 . Extermination . | . . . Reinforcement 3 | . 3 . Assault . | . . . Garrison . | . . . Intercept . | . . . Searches Triggered . | . . . Construction Impeded . | . . . Haulers Reinforced . | . . . Active Scanning Responses . | . . . Cargo Convoy Interrupts . | . . . Stealth | -11 -10 -10 --------- Run | Yrd Mat Sub Distress Signals 2 | . 2 . Communications Jammed . | . . . Distress Signals . | . . . Times Spotted 26 | . 22 4 Peak Tracking Total 4 | . 4 2 Tactical Retreats . | . . . Traps | -11 -10 -10 ------- Run | Yrd Mat Sub Traps Triggered . | . . . Indirectly . | . . . Trap Hack Attempts . | . . . Triggered . | . . . Disarmed . | . . . Reprogrammed . | . . . Reused . | . . . Traps Extracted . | . . . Installed . | . . . Triggered . | . . . Machines | -11 -10 -10 ---------- Run | Yrd Mat Sub Machines Disabled . | . . . Max in Single Turn . | . . . Machines Repaired . | . . . Machines Dismantled . | . . . Machines Sabotaged . | . . . Overloaded Fab Kills . | . . . Hacking | -11 -10 -10 --------- Run | Yrd Mat Sub Machines Accessed 5 | . 5 . Terminals 3 | . 3 . Fabricators . | . . . Repair Stations . | . . . Recycling Units 2 | . 2 . Scanalyzers . | . . . Garrison Access . | . . . Total Hacks 12 | . 12 . Successful 6 | . 6 . Failed 6 | . 6 . Catastrophic . | . . . Database Lockouts . | . . . Manual 9 | . 9 . Terminals 7 | . 7 . Fabricators . | . . . Repair Stations . | . . . Recycling Units 5 | . 5 . Scanalyzers . | . . . Garrison Access . | . . . Terminal Hacks 3 | . 3 . Robot Schematic 1 | . 1 . Robot Analysis 1 | . 1 . Terminal Index 1 | . 1 . Fabricator Hacks . | . . . Repair Station Hacks . | . . . Recycling Unit Hacks 1 | . 1 . Report Inventory 1 | . 1 . Scanalyzer . | . . . Garrison Access Hacks . | . . . Unauthorized Hacks 2 | . 2 . Terminals . | . . . Fabricators . | . . . Repair Stations . | . . . Recycling Units 2 | . 2 . Tunnel 2 | . 2 . Scanalyzers . | . . . Garrison Access . | . . . Data Cores Recovered . | . . . Used . | . . . Hacking Detections 3 | . 3 . Full Trace Events 1 | . 1 . Feedback Events . | . . . Feedback Blocked . | . . . Robot Schematics Acquired 1 | . 1 . Robots Built . | . . . Authchips . | . . . Time . | . . . Total Robot Build Rating . | . . . Part Schematics Acquired . | . . . Parts Built . | . . . Authchips . | . . . Time . | . . . Total Part Build Rating . | . . . Parts Repaired . | . . . Time . | . . . Parts Recycled . | . . . Recycled Matter . | . . . Retrieved Matter . | . . . Retrieved Components . | . . . Parts Scanalyzed . | . . . Part Schematics Acquired . | . . . Parts Damaged . | . . . Bothacking | -11 -10 -10 ------------ Run | Yrd Mat Sub Used RIF Installer . | . . . Robots Hacked . | . . . Non-combat . | . . . Combat . | . . . Robot Hacks Applied . | . . . Relay Couplers Released . | . . . Fabnet Peak Effective % . | . . . Robots Rewired . | . . . Allies Hacked . | . . . Hacks Repelled . | . . . Allies | -11 -10 -10 -------- Run | Yrd Mat Sub Total Allies . | . . . Largest Group . | . . . Highest-Rated Group . | . . . Highest-Rated Ally . | . . . Total Orders . | . . . Ally Attacks . | . . . Total Damage . | . . . Kills . | . . . Allies Corrupted . | . . . Allies Melted . | . . . Intel | -11 -10 -10 ------- Run | Yrd Mat Sub Robot Analysis Total 1 | . 1 . Derelict Logs Recovered 1 | . . 1 Drone Launches . | . . . Drone Recoveries . | . . . Exploration | -11 -10 -10 ------------- Run | Yrd Mat Sub Turns Passed 1467 | 149 963 355 Spaces Moved 567 | 70 307 190 Core 1 | 1 . . Treads 288 | 66 59 163 Legs . | . . . Wheels 278 | 3 248 27 Hover . | . . . Flight . | . . . Fastest Speed 50 | 50 95 95 Average Speed 127 | 155 107 150 Slowest Speed 160 | 160 160 160 Overloaded Moves . | . . . Propulsion Burnouts . | . . . Robots Hopped . | . . . Cave-ins Triggered . | . . . Exploration Rate (%) 26 | 4 65 11 Regions Visited 2 Branch Regions 1 Pre-discovered Areas 3 | . 2 1 Known Exits Taken . | . . . Unknown Exits Taken 2 | 1 1 . Scrap Searched 2 | . . 2 Spaces Dug . | . . . Terrain Destroyed 8 | . . 8 Melee . | . . . Projectile . | . . . AOE 8 | . . 8 Terrain Rammed . | . . . Walls Destroyed . | . . . Machines Disabled . | . . . Actions | -11 -10 -10 --------- Run | Yrd Mat Sub Total 1140 | 93 816 231 Wait 429 | 1 414 14 Move 565 | 69 306 190 Hop . | . . . Pick Up 21 | 8 8 5 Fast Attach 8 | 7 1 . Attach 6 | . 4 2 Detach . | . . . Swap 6 | . 3 3 Drop 9 | . 7 2 Fire 96 | 8 73 15 Melee . | . . . Ram . | . . . Kick . | . . . Crush . | . . . Escape Stasis . | . . . Rewire . | . . . Trap . | . . . Miscellaneous . | . . . Route ------- -11/Scrapyard -10/Materials (discovered 4 exits: [*Mat x2] / [*Min] / [*Sub]) -10/Subcaves History --------- Turn | Location | Event 27 | -11/Scrapyard | Discovered new exit (range 15) 150 | -11/Scrapyard | Entered Materials 307 | -10/Materials | Build established: Mutant 389 | -10/Materials | Discovered new exit (range 7) 553 | -10/Materials | Discovered new exit (range 15) 593 | -10/Materials | Discovered new exit (range 6) 1088 | -10/Materials | Discovered new exit (range 8) 1113 | -10/Materials | Entered Subcaves 1154 | -10/Subcaves | Core integrity fell below 50% 1450 | -10/Subcaves | Core integrity fell below 20% 1468 | -10/Subcaves | Destroyed by SR-YEA(R) with Subdweller Machine Gun Last Messages --------------- 01177_ 9C-ZHI(R) destroyed. 01180_ Acquired 30 matter. 01184_ Acquired Sub. Beam Cannon. 01191_ Acquired Sub. Monowheel. 01197_ Searching scrap... 01197_ Found Sub. Laser. 01197_ Found 19 Matter. 01198_ Acquired 5 matter. 01200_ Acquired Sub. Laser. 01203_ Searching scrap... 01203_ Found Multitool. 01203_ Found Mak. Axe. 01203_ Found 29 Matter. 01207_ Dropped Ion Engine. 01209_ Acquired Multitool. 01212_ Dropped Sml. Laser. 01212_ Acquired Mak. Axe. 01215_ Acquired 10 matter. 01397_ Acquired derelict log, extracted data. World map updated: -8/Materials. Map ----- +----------------------------------------------------+ | ????????????????## ##?######???????? | | ????????????????# ## #???????? | | ????????????????# #????????? | | ????????????????# ###????????? | | ????????????????# ### #??????????? | | ????????????????# ##?# ##?????????? | | ????????????????## #??# #?????????? | | ?????????????????### ##?# ###?????????? | | ???????????????????## ### #???????????? | | ???????????????????### ### ##??????????? | | ???????????????????# ## #??????????? | | ???????????????????# #??????????? | | ??????????????????## # # ##??????????? | | ?????????????????## #### ##??????????? | | ?????????????????# ###?# ### #??????? | | ????????????????## # ###### ##?????? | | ????????????????# # #??## #?????? | | ????????????????#### ##???# # # #????? | | ???????????????????# #???###### #??? | | ??????????????????## ##?????????? #??? | | ??????????????????# #??????#????? ##??? | | ??????????????????## #????? ##????? ##???? | | ?????????????????### ##?? ##?????#????? | | ?????????????????# ## ## ???????? | | ?????????????????# ??????? | | ?????????????????#@ ??????? | | ?????????????????## R ??????? | | ?????????????????# ??????? | | ?????????????????#" #### ???????? | | ???????????????? ###???????????? | | ???????????????# #" ##?????????????? | | ??????????????& "## ####??????????????? | | ?????????????###?? #?????????????????? | | ?????????????????? #####?????????????????? | | ?????????????????? #?????????????????????? | | ????????????????? ?????????????????????? | | ?????????????????# ?????????????????????? | | ?????????????????## ?????????????????????? | | ?????????????????? ?????????????????????? | | ?????????????????? ?????????????????????? | | ??????????????????# ??????????????????????? | | ??????????????????? ??????????????????????? | | ??????????????????????????????????????????? | | ??????????????????????????????????????????? | | ??????????????????????????????????????????? | | ??????????????????????????????????????????? | | ??????????????????????????????????????????? | | ??????????????????????????????????????????? | | ??????????????????????????????????????????? | | ??????????????????????????????????????????? | +----------------------------------------------------+ Best States ------------- Heat Dissipation 35 Energy Generation 10 Energy Capacity 250 Matter Stores 300 Matter Capacity 300 Sight Range 16 Terrain Scan Range 16 Terrain Scan Density 10 Evasion (%) 41 Recoil Reduction 2 Item Schematics ----------------- None Robot Schematics ------------------ M-13 Machinist | -10/Materials | Hacked Fabricated ------------ Nothing Alien Tech Used ----------------- None Achievements -------------- None Challenges ------------ None Game ------ Seed PointIonConstruct Manual? 0 Play Time 00:10:51 Cumulative 625.3 hours Start 2024.03.21 @ 01:28:10 End 2024.03.21 @ 01:37:18 Sessions 1 Manual Loads 0 Difficulty Rogue Special Mode None Game No. 241 Rogue 217 Adventurer 3 Explorer 21 Win Type - Total 14 Types 9/2/1/1/0/1/0/0/0 Lore% 89 Gallery% 96 Achievement% 83 Wizard Run 0 Options --------- Layout 2 ASCII 0 Keyboard 0 Movement Numpad Keybinds 0 Fullscreen 2 Font 24/Smallcaps Map View 50x44 Zoom Use 0% Tactical HUD 1 Map Filters NONE Filters NONE Steam 1 RUN: a470d369-a63a-4ba0-a0f0-d1ac4ad71106